Cogmind - Beta 14 @@@ ROGUE MODE // 2024.11.14 @ 20:08:52 Player: Crimson Result: Self-destructed Performance ------------- Evolutions (3) 1500 Regions Visited (5) 1000 Robots Destroyed (31) 155 Value Destroyed (778) 778 Prototype IDs (2) 40 Alien Tech Used (0) 0 Bonus (500) 500 TOTAL SCORE: 3973 Bonus ------- Entered DSFs 500 Cogmind --------- Core Integrity 659/700 Matter 267/300 Energy 265/265 System Corruption 0% Temperature Cool (0) Movement Walking (120) Location -7/DSF Parts ------- > --- POWER (1) -------- Reinforced Ion Engine > --- PROPULSION (3) --- Improved Aluminum Leg Improved Aluminum Leg Improved Hover Unit > --- UTILITY (7) ------ Small Storage Unit Structural Scanner Improved Sensor Array Seismic Detector Advanced Targeting Computer Light Armor Plating Hacking Suite > --- WEAPON (2) ------- Datajack Spear > --- INVENTORY (8) ---- Improved Ion Engine Improved Hover Unit Faulty Improved VTOL Module Improved VTOL Module Light EM Pulse Cannon EMP Blaster Mini Grenade Launcher Peak State ------------ > --- POWER ------------ Reinforced Ion Engine > --- PROPULSION ------- Improved Aluminum Leg Improved Aluminum Leg Improved Hover Unit > --- UTILITY ---------- Small Storage Unit Structural Scanner Improved Sensor Array Seismic Detector Advanced Targeting Computer Light Armor Plating Hacking Suite > --- WEAPON ----------- Datajack Spear > --- INVENTORY -------- Improved Ion Engine Improved Hover Unit Improved VTOL Module Improved VTOL Module Light EM Pulse Cannon EMP Blaster Mini Grenade Launcher [Rating: 27] Favorites ----------- Power Ion Engine Engine Ion Engine Propulsion Aluminum Leg Leg Aluminum Leg Hover Unit Improved Hover Unit Flight Unit Flight Unit Utility Seismic Detector Device Seismic Detector Storage Small Storage Unit Processor Advanced Targeting Computer Hackware Hacking Suite Protection Light Armor Plating Weapon Medium Laser Energy Gun Medium Laser Energy Cannon Light EM Pulse Cannon Ballistic Gun Autogun Launcher Grenade Launcher Special Weapon Mining Laser Slashing Weapon Katana Piercing Weapon Spear Special Melee Weapon Datajack Build | -11 -10 -9 -8 -7 -7 ------- Run | Yrd Mat Mat Mat Fac DSF Slots Evolved 6 | . . 2 2 2 . Power . | . . . . . . Propulsion 1 | . . . 1 . . Utility 5 | . . 2 1 2 . Weapon . | . . . . . . Parts Attached 70 | 8 7 42 10 . 3 Power 9 | 1 1 7 . . . Engine 9 | 1 1 7 . . . Core . | . . . . . . Reactor . | . . . . . . Propulsion 19 | 2 . 15 2 . . Treads . | . . . . . . Leg 10 | 2 . 7 1 . . Wheel . | . . . . . . Hover 3 | . . 2 1 . . Flight 6 | . . 6 . . . Utility 23 | 3 4 10 4 . 2 Device 12 | 2 4 5 . . 1 Storage 6 | 1 . 4 1 . . Processor 1 | . . . . . 1 Hackware 1 | . . . 1 . . Protection 3 | . . 1 2 . . Artifact . | . . . . . . Weapon 19 | 2 2 10 4 . 1 Energy Gun 5 | 1 . 2 2 . . Energy Cannon 3 | . . 3 . . . Ballistic Gun 3 | 1 . 2 . . . Ballistic Cannon . | . . . . . . Launcher 2 | . 2 . . . . Special Weapon 2 | . . 1 1 . . Impact Weapon . | . . . . . . Slashing Weapon 2 | . . 2 . . . Piercing Weapon 1 | . . . 1 . . Special Melee Weapon 1 | . . . . . 1 Unidentified Prototypes . | . . . . . . Parts Lost 5 | . . 5 . . . Power . | . . . . . . Propulsion 2 | . . 2 . . . Utility 2 | . . 2 . . . Weapon 1 | . . 1 . . . Highest Loss Streak 3 | . . 3 . . . To Critical Strikes . | . . . . . . Average Slot Usage (%) 97 | . 99 96 99 . 96 Engine 10 | . 14 11 9 . 7 Leg 15 | . 28 11 17 . 15 Hover 3 | . . 2 9 . 7 Flight 5 | . . 8 . . . Device 27 | . 14 31 25 . 21 Storage 10 | . 14 10 9 . 7 Protection 2 | . . . 9 . 7 Energy Gun 7 | . 14 6 8 . . Energy Cannon 1 | . . 1 . . . Ballistic Gun 3 | . 9 3 . . . Launcher 2 | . 4 2 . . . Special Weapon 2 | . . 2 . . . Slashing Weapon 2 | . . 2 3 . . Piercing Weapon 1 | . . . 5 . 7 Peak Build Rating 27 | 8 8 16 24 24 27 Average Rating 13 | 5 7 12 20 24 26 On Entrance 13 | . 8 8 16 24 24 Naked Turns . | . . . . . . Heaviest Build 26 | 15 16 25 26 25 25 Greatest Support 26 | 20 20 26 26 26 26 Greatest Overweight (x) 2 | 1 . 2 . . . Average Overweight (x) . | . . . . . . Largest Inventory Capacity 8 | 8 8 8 8 8 8 Average Capacity 7 | 7 8 7 8 8 8 Most Carried 8 | 8 8 8 8 8 8 Average Carried 7 | 4 7 7 7 8 7 Final Capacity 8 | 8 8 8 8 8 8 Final Carried 8 | 8 8 8 8 8 7 Class Distribution -------------------- 64% | Mutant 35% | Scavenger-Mutant Dominant Class ---------------- Mutant | -10/Materials Scavenger-Mutant | -9/Materials Mutant | -8/Materials Mutant | -7/Factory Mutant | -7/DSF Resources | -11 -10 -9 -8 -7 -7 ----------- Run | Yrd Mat Mat Mat Fac DSF Matter Collected 1037 | 298 42 505 185 . 7 Remotely . | . . . . . . Salvage Created 981 | 75 85 615 206 . . Parts 67 | 9 10 39 9 . . Haulers Intercepted . | . . . . . . Recyclers Shooed . | . . . . . . Parts Field Recycled . | . . . . . . Retrieved Matter . | . . . . . . Parts Self-Destructed . | . . . . . . Prevented . | . . . . . . Kills | -11 -10 -9 -8 -7 -7 ------- Run | Yrd Mat Mat Mat Fac DSF Combat Hostiles Destroyed 26 | . 6 16 4 . . Melee 5 | . . 2 3 . . Guns 17 | . 6 10 1 . . Cannons 4 | . . 4 . . . Classes Destroyed 8 | 2 1 5 . . . Worker 1 | 1 . . . . . Tunneler 3 | 3 . . . . . Watcher 1 | . . 1 . . . Swarmer 10 | . 6 4 . . . Grunt 9 | . . 7 2 . . Brawler 1 | . . 1 . . . Duelist 1 | . . 1 . . . Sentry 5 | . . 3 2 . . Best Kill Streak 4 | 2 4 4 1 . . Combat Bots Only 4 | . 4 4 1 . . Max Kills in Single Turn 1 | 1 1 1 1 . . Gunslinging . | . . . . . . Exploded . | . . . . . . Melee 1 | . . 1 1 . . Uniques/NPCs Destroyed . | . . . . . . Combat | -11 -10 -9 -8 -7 -7 -------- Run | Yrd Mat Mat Mat Fac DSF Hostile Shots Fired 123 | . 27 69 17 . 10 Missed 43 | . 12 19 9 . 3 Damage Taken 1307 | . 124 837 123 . 223 Core 243 | . 46 156 . . 41 Absorbed by Shields . | . . . . . . Regen/Repaired (Parts) 104 | . 10 51 43 . . Core Remaining (%) 85 | 100 81 61 100 . . Volleys Fired 62 | 6 14 39 3 . . Largest 2 | 2 2 2 1 . . Hottest 123 | 70 70 123 63 . . Shots Fired 88 | 12 28 45 3 . . Gun 77 | 12 28 34 3 . . Cannon 6 | . . 6 . . . Launcher . | . . . . . . Special 5 | . . 5 . . . Kinetic 25 | 6 14 5 . . . Thermal 62 | 6 14 39 3 . . Explosive . | . . . . . . Electromagnetic 1 | . . 1 . . . Robot Hit Streak 9 | 4 5 9 1 . . Robot Miss Streak 3 | 1 3 3 1 . . Penetration Max . | . . . . . . Secondary Targets 1 | . 1 . . . . Max Gunslinging Chain 1 | . 1 . . . . Shots Hit Robots 74 | 8 13 38 11 . 4 Core Hits 37 | 4 6 22 5 . . Critical Kills . | . . . . . . Critical Parts Destroyed . | . . . . . . Critical Strikes 6 | 1 1 2 2 . . Burn 4 | 1 1 2 . . . Sever 2 | . . . 2 . . Melee Attacks 22 | . . 6 12 . 4 Impact . | . . . . . . Slashing 12 | . . 6 6 . . Piercing 6 | . . . 6 . . Sneak Attacks 2 | . . . . . 2 Combat Hostiles 2 | . . . . . 2 Follow-up Attacks . | . . . . . . Damage Inflicted 1217 | 105 158 658 296 . . Guns 627 | 105 158 331 33 . . Cannons 125 | . . 125 . . . Explosions . | . . . . . . Melee 417 | . . 154 263 . . Ramming . | . . . . . . Kinetic 166 | 42 49 75 . . . Thermal 634 | 63 109 429 33 . . Explosive . | . . . . . . Electromagnetic . | . . . . . . Impact . | . . . . . . Slashing 289 | . . 154 135 . . Piercing 128 | . . . 128 . . Highest Corruption . | . . . . . . Average Corruption . | . . . . . . Corruption Purged . | . . . . . . Corruption Blocked . | . . . . . . Overload Shots . | . . . . . . Overflow Damage . | . . . . . . Projectiles . | . . . . . . Explosions . | . . . . . . Melee . | . . . . . . Knockbacks . | . . . . . . Impact . | . . . . . . Kinetic . | . . . . . . Secondary . | . . . . . . Self-Inflicted Damage . | . . . . . . Shots . | . . . . . . Rammed . | . . . . . . Targets Rammed . | . . . . . . Kicked . | . . . . . . Crushed . | . . . . . . Highest Temperature 120 | 18 63 120 72 . . Average Temperature 29 | 7 26 33 31 . . Received Heat Transfer 354 | . . 237 99 . 18 Siege Activations . | . . . . . . Robots Corrupted . | . . . . . . Combat Hostiles . | . . . . . . Parts Fried . | . . . . . . Impact Corruptions . | . . . . . . Robots Melted . | . . . . . . Combat Hostiles . | . . . . . . Parts Melted 5 | 1 1 3 . . . Heat Transferred 1914 | 259 407 1174 74 . . Parts Sabotaged . | . . . . . . Parts Stolen . | . . . . . . Parts Stripped . | . . . . . . Power Chain Reactions . | . . . . . . Alert | -11 -10 -9 -8 -7 -7 ------- Run | Yrd Mat Mat Mat Fac DSF Peak Influence 203 | 20 203 200 154 15 55 Initial 79 | . 13 14 79 15 10 Average 63 | 7 77 65 63 15 25 Maximum Alert Level 1 | . 1 1 . . . Low Security (%) 93 | 100 72 96 100 100 100 Level 1 6 | . 27 3 . . . Level 2 . | . . . . . . Level 3 . | . . . . . . Level 4 . | . . . . . . Level 5 . | . . . . . . High Security . | . . . . . . Max Security . | . . . . . . Squads Dispatched 4 | . . 3 1 . . Investigation . | . . . . . . Extermination . | . . . . . . Reinforcement 4 | . . 3 1 . . Assault . | . . . . . . Garrison . | . . . . . . Intercept . | . . . . . . Searches Triggered . | . . . . . . Construction Impeded . | . . . . . . Haulers Reinforced . | . . . . . . Active Scanning Responses . | . . . . . . Cargo Convoy Interrupts . | . . . . . . Stealth | -11 -10 -9 -8 -7 -7 --------- Run | Yrd Mat Mat Mat Fac DSF Distress Signals 6 | . 1 5 . . . Communications Jammed . | . . . . . . Distress Signals . | . . . . . . Times Spotted 51 | . 9 32 7 . 3 Peak Tracking Total 5 | . 4 5 4 . 1 Tactical Retreats 7 | . 2 1 1 . 3 Traps | -11 -10 -9 -8 -7 -7 ------- Run | Yrd Mat Mat Mat Fac DSF Traps Triggered 1 | . 1 . . . . Indirectly . | . . . . . . Trap Hack Attempts . | . . . . . . Triggered . | . . . . . . Disarmed . | . . . . . . Reprogrammed . | . . . . . . Reused . | . . . . . . Traps Extracted . | . . . . . . Installed . | . . . . . . Triggered . | . . . . . . Machines | -11 -10 -9 -8 -7 -7 ---------- Run | Yrd Mat Mat Mat Fac DSF Machines Disabled . | . . . . . . Max in Single Turn . | . . . . . . Machines Repaired . | . . . . . . Machines Dismantled . | . . . . . . Machines Sabotaged . | . . . . . . Overloaded Fab Kills . | . . . . . . Hacking | -11 -10 -9 -8 -7 -7 --------- Run | Yrd Mat Mat Mat Fac DSF Machines Accessed 15 | . 4 7 3 1 . Terminals 9 | . 3 4 1 1 . Fabricators . | . . . . . . Repair Stations 4 | . 1 2 1 . . Recycling Units 1 | . . . 1 . . Scanalyzers 1 | . . 1 . . . Garrison Access . | . . . . . . Total Hacks 50 | . 20 22 7 1 . Successful 32 | . 15 12 4 1 . Failed 18 | . 5 10 3 . . Catastrophic 2 | . . 2 . . . Database Lockouts . | . . . . . . Manual 10 | . 5 4 1 . . Terminals 29 | . 14 12 2 1 . Fabricators . | . . . . . . Repair Stations 18 | . 6 9 3 . . Recycling Units 2 | . . . 2 . . Scanalyzers 1 | . . 1 . . . Garrison Access . | . . . . . . Terminal Hacks 20 | . 11 7 1 1 . Record 5 | . 3 2 . . . Prototype ID Bank 1 | . 1 . . . . Open DSF 1 | . . . . 1 . Branch Access Points 1 | . . 1 . . . Terminal Index 1 | . 1 . . . . Alert Level 6 | . 3 2 1 . . Locate Traps 2 | . 1 1 . . . Investigation Status 1 | . 1 . . . . Hauler Manifests 1 | . . 1 . . . Registered Components 1 | . 1 . . . . Fabricator Hacks . | . . . . . . Repair Station Hacks 11 | . 4 5 2 . . Scan Component 6 | . 2 3 1 . . Repair 5 | . 2 2 1 . . Recycling Unit Hacks 1 | . . . 1 . . Report Inventory 1 | . . . 1 . . Scanalyzer . | . . . . . . Garrison Access Hacks . | . . . . . . Unauthorized Hacks . | . . . . . . Terminals . | . . . . . . Fabricators . | . . . . . . Repair Stations . | . . . . . . Recycling Units . | . . . . . . Scanalyzers . | . . . . . . Garrison Access . | . . . . . . Data Cores Recovered . | . . . . . . Used . | . . . . . . Hacking Detections 14 | . 4 7 3 . . Full Trace Events . | . . . . . . Feedback Events . | . . . . . . Feedback Blocked . | . . . . . . Robot Schematics Acquired . | . . . . . . Robots Built . | . . . . . . Authchips . | . . . . . . Time . | . . . . . . Total Robot Build Rating . | . . . . . . Part Schematics Acquired . | . . . . . . Parts Built . | . . . . . . Authchips . | . . . . . . Time . | . . . . . . Total Part Build Rating . | . . . . . . Parts Repaired 5 | . 2 2 1 . . Time 160 | . 64 64 32 . . Parts Recycled . | . . . . . . Recycled Matter . | . . . . . . Retrieved Matter . | . . . . . . Retrieved Components . | . . . . . . Parts Scanalyzed . | . . . . . . Part Schematics Acquired . | . . . . . . Parts Damaged . | . . . . . . Bothacking | -11 -10 -9 -8 -7 -7 ------------ Run | Yrd Mat Mat Mat Fac DSF Used RIF Installer . | . . . . . . Robots Hacked 1 | . . . . . 1 Non-combat . | . . . . . . Combat 1 | . . . . . 1 Robot Hacks Applied 1 | . . . . . 1 parse_system 1 | . . . . . 1 Relay Couplers Released . | . . . . . . Fabnet Peak Effective % . | . . . . . . Robots Rewired . | . . . . . . Allies Hacked . | . . . . . . Hacks Repelled . | . . . . . . Allies | -11 -10 -9 -8 -7 -7 -------- Run | Yrd Mat Mat Mat Fac DSF Total Allies . | . . . . . . Largest Group . | . . . . . . Highest-Rated Group . | . . . . . . Highest-Rated Ally . | . . . . . . Total Orders . | . . . . . . Ally Attacks . | . . . . . . Total Damage . | . . . . . . Kills . | . . . . . . Allies Corrupted . | . . . . . . Allies Melted . | . . . . . . Intel | -11 -10 -9 -8 -7 -7 ------- Run | Yrd Mat Mat Mat Fac DSF Robot Analysis Total . | . . . . . . Derelict Logs Recovered . | . . . . . . Drone Launches . | . . . . . . Drone Recoveries . | . . . . . . Exploration | -11 -10 -9 -8 -7 -7 ------------- Run | Yrd Mat Mat Mat Fac DSF Turns Passed 5215 | 186 694 3279 923 3 130 Spaces Moved 1574 | 105 293 809 281 3 83 Core 5 | 5 . . . . . Treads . | . . . . . . Legs 1194 | 100 293 434 281 3 83 Wheels . | . . . . . . Hover 187 | . . 187 . . . Flight 188 | . . 188 . . . Fastest Speed 50 | 50 120 56 120 120 120 Average Speed 127 | 118 120 133 120 120 120 Slowest Speed 197 | 120 120 197 120 120 120 Overloaded Moves . | . . . . . . Propulsion Burnouts . | . . . . . . Robots Hopped . | . . . . . . Cave-ins Triggered . | . . . . . . Exploration Rate (%) 38 | 5 34 58 22 . 71 Regions Visited 5 Branch Regions . Pre-discovered Areas . | . . . . . . Known Exits Taken 1 | . . . . 1 . Unknown Exits Taken 4 | 1 1 1 1 . . Scrap Searched . | . . . . . . Spaces Dug . | . . . . . . Terrain Destroyed 1 | . . 1 . . . Melee . | . . . . . . Projectile 1 | . . 1 . . . AOE . | . . . . . . Terrain Rammed . | . . . . . . Walls Destroyed . | . . . . . . Machines Disabled . | . . . . . . Actions | -11 -10 -9 -8 -7 -7 --------- Run | Yrd Mat Mat Mat Fac DSF Total 4662 | 155 607 2942 846 2 110 Wait 2838 | 20 279 1990 530 . 19 Move 1569 | 104 292 808 280 2 83 Hop . | . . . . . . Pick Up 53 | 16 8 24 5 . . Fast Attach 21 | . 2 15 2 . 2 Attach 19 | 7 . 9 2 . 1 Detach 1 | . . 1 . . . Swap 30 | 1 5 18 6 . . Drop 47 | 1 7 32 6 . 1 Fire 62 | 6 14 39 3 . . Melee 22 | . . 6 12 . 4 Ram . | . . . . . . Kick . | . . . . . . Crush . | . . . . . . Escape Stasis . | . . . . . . Rewire . | . . . . . . Trap . | . . . . . . Miscellaneous . | . . . . . . Route ------- -11/Scrapyard -10/Materials -9/Materials (discovered 3 exits: *Mat / *Min x2) -8/Materials -7/Factory -7/DSF (discovered 1 exit: [*Fac]) History --------- Turn | Location | Event 12 | -11/Scrapyard | Discovered new exit (range 16) 187 | -11/Scrapyard | Entered Materials 230 | -10/Materials | Repaired Seismic Detector 271 | -10/Materials | Repaired Imp. Terrain Scanner 304 | -10/Materials | Build established: Mutant 722 | -10/Materials | Discovered new exit (range 16) 881 | -10/Materials | Entered another Materials area 881 | -9/Materials | Evolved 2 slots: Utility x2 1882 | -9/Materials | Identified exit to Mines 2161 | -9/Materials | Build established: Scavenger-Mutant 3715 | -9/Materials | Lost 3 parts (2n1u) 3876 | -9/Materials | Repaired Lgt. EM Pulse Cannon 3912 | -9/Materials | Repaired Rnf. Ion Engine 4031 | -9/Materials | Build established: Mutant 4151 | -9/Materials | Discovered new exit (range 6) 4160 | -9/Materials | Entered another Materials area 4160 | -8/Materials | Evolved 2 slots: Propulsion x1, Utility x1 4944 | -8/Materials | Discovered new exit (range 12) 4981 | -8/Materials | Repaired Imp. Aluminum Leg 5083 | -8/Materials | Entered Factory 5083 | -7/Factory | Evolved 2 slots: Utility x2 5086 | -7/Factory | Identified exit to DSF 5086 | -7/Factory | Entered DSF 5125 | -7/DSF | Additional patrols routed to DSF 5157 | -7/DSF | Discovered new exit (range 15) 5216 | -7/DSF | Self-destructed Last Messages --------------- 05108_ Knocked back. 05108_ Acquired Imp. Sensor Array. 05125_ Hostiles detected in DSF, routing additional patrols. 05157_ EXIT=FOUND 05190_ A-02 Transporter delivers Hvy. Missile Launcher. 05193_ Knocked back. 05195_ Acquired 7 matter. 05207_ Sneak attack on X-62 Marksman. 05207_ X-62 Marksman system offline. 05209_ Sneak attack on X-62 Marksman. 05209_ X-62 Marksman system offline. 05212_ X-62 Marksman springs to life. 05212_ Penetrated by Slug. 05213_ Jacked X-62 Marksman... >>parse_system Reading system data... 05214_ Jacked X-62 Marksman... 05215_ Penetrated by Slug. Map ----- +----------------------------------------------------+ | | | | | | | | | | | | | | | | | | | | | | | | | | | | | ????????????????????????????????????? | | ????????????????????????????????????? | | ????????????????????????????????????? | | ????????????????????????????????????? | | ???????????????????????##""#????????? | | #?????###########?????###"#####?????? | | #########################"#####?????? | | ########]] !!#########"""""##?????? | | #!!#!!!#]] !!#!!!# ##"""""###????? | | ""##"????? | | """""????? | | # # ### ###!!!#!!##x@ ""###????? | | # # ## ###!!!#!!### #####????? | | ######## !!########## ####?????? | | ######## !!######## ! !##??????? | | ##????## !!##?????? ! !##??????? | | ##????#### ####??????## ###??????? | | ##????## = ! ##?????? ! !##??????? | | ##??????== H !!?????????! !##??????? | | #####?##== !!##?????? ! !##??????? | | #####?#### ####??????## ###??????? | | ///# !!### ### ??????## #??????? | | ///#!!!## #?????????? ????????? | | ??????????? ????????? | | ??????????? ????????? | | ??????????? ????????? | | !!!#!!!## #?????????? ????????? | | !!!# ?!### ###????????????????????? | | #####?###? ###????????????????????? | | #####????? ]]#????????????????????? | | ##???????? ]??????????????????????? | | ##?????? ] ##???????????????????? | | ##??????## ####???????????????????? | | ##?????? ! !!##???????????????????? | | ######## ! !!######???????????????? | | ######## ! !!#########????????????? | +----------------------------------------------------+ Best States ------------- Heat Dissipation 34 Energy Generation 12 Energy Capacity 265 Matter Stores 300 Matter Capacity 300 Sight Range 16 Robot Scan Range 15 Terrain Scan Range 16 Terrain Scan Density 10 Armor Coverage 150 Evasion (%) 55 Targeting Accuracy 8 Offensive Hacking 10 Item Schematics ----------------- None Robot Schematics ------------------ None Fabricated ------------ Nothing Alien Tech Used ----------------- None Achievements -------------- None Challenges ------------ None Game ------ Seed VisualMicroCompactor Manual? 0 Play Time 02:41:48 Cumulative 41.1 hours Start 2024.11.13 @ 17:50:03 End 2024.11.14 @ 20:08:52 Sessions 3 Manual Loads 0 Difficulty Rogue Special Mode None Game No. 23 Rogue 23 Adventurer 0 Explorer 0 Win Type - Total 0 Types 0/0/0/0/0/0/0/0/0 Lore% 5 Gallery% 21 Achievement% 14 Wizard Run 0 Options --------- Layout 1 ASCII 1 Keyboard 0 Movement Mouse Keybinds 0 Fullscreen 1 Font 24/Smallcaps Map View 50x35 Zoom Use 1% Tactical HUD 1 Map Filters NONE Filters NONE Steam 1 RUN: 4c6e8f1f-57da-4976-9b51-c9c5153526e1